bitfinex-derivatives/quotes_SOLF0:USTF0_20250101
["timestamp","ask_amount","ask_price","bid_price","bid_amount"]
[1735749657172,3.02,191.04,191.01,8.44192202]
[1735749657477,2.622,191.08,191.03,11.06452202]
[1735749657666,3.02,191.07,191.03,11.06452202]
[1735749658170,4.7197,191.11,191.05,8.44192202]
[1735749658171,3.02,191.06,191.05,8.44192202]
[1735749659273,3.02,191.06,191.05,11.06432202]
[1735749659879,3.02,191.06,190.99,4.6974]
[1735749660080,3.02,191.06,191.03,8.44192202]
[1735749660879,3.02,191.06,191.03,11.06462202]
[1735749663583,3.02,191.06,191.03,8.44192202]
[1735749663785,62.92192202,191.12,191.05,8.44192202]
[1735749663979,3.02,191.11,191.05,8.44192202]
[1735749664179,2.6219,191.09,191.05,8.44192202]
[1735749664492,3.02,191.11,191.05,8.44192202]
[1735749665285,2.6219,191.09,191.05,8.44192202]
[1735749665488,3.02,191.11,191.05,8.44192202]
[1735749665781,5.6417,191.11,191.06,2.6222]
[1735749665985,3.02,191.11,191.06,2.6222]
[1735749666185,3.02,191.11,191.05,8.44192202]
[1735749666186,3.02,191.1,191.05,8.44192202]
[1735749666784,3.02,191.1,191.03,8.44192202]
[1735749667490,3.02,191.09,191.05,8.44192202]
[1735749668185,3.02,191.09,191.03,8.44192202]
[1735749669683,2.6222,191.07,191.03,8.44192202]
[1735749669885,2.6222,191.07,191.03,11.06462202]
[1735749670093,3.02,191.06,191.03,11.06462202]
[1735749670785,3.02,191.06,191.03,8.44192202]
[1735749670786,2.6224,191.05,191.03,8.44192202]
[1735749670987,3.02,191.06,191.01,8.44192202]
[1735749671283,3.02,191.06,190.99,11.54882202]
[1735749671686,2.6226,191.04,190.99,14.17192202]
[1735749671884,2.6226,191.04,191.01,8.44192202]
[1735749674487,2.6227,191.03,190.99,11.06522202]
[1735749675087,3.02,191.06,191.01,8.44192202]
[1735749675292,2.6225,191.05,191.01,11.06492202]
[1735749675982,3.02,191.04,191.03,8.44192202]
[1735749676690,3.02,191.04,191.03,11.06462202]
[1735749677486,3.02,191.04,191.03,8.44192202]
[1735749678490,3.02,191.04,191.03,11.06462202]
[1735749679801,3.02,191.04,191.03,8.44192202]
[1735749679993,3.02,191.04,191.01,8.44192202]
[1735749681499,2.6226,191.04,191.01,8.44192202]
[1735749681799,3.02,191.03,191.01,8.44192202]
[1735749681999,3.02,191.02,191.01,8.44192202]
[1735749682599,2.6224,191.06,191.02,2.6228]
[1735749682797,3.02,191.05,191.03,8.44192202]
[1735749683299,3.02,191.05,191.03,11.06462202]
[1735749685299,3.02,191.05,191.04,2.6226]
[1735749685801,2.622,191.09,191.05,2.6224]
[1735749686103,3.02,191.08,191.05,11.06432202]
[1735749686894,2.622,191.09,191.05,8.44192202]
[1735749687099,12.37781219,191.11,190.94,14.90883302]
[1735749687100,3.93589017,191.11,191.07,8.44192202]
[1735749687300,3.02,191.1,191.09,8.44192202]
[1735749687496,50.77218209,191.14,191.09,8.44192202]
[1735749687802,3.02,191.11,191.09,8.44192202]
[1735749688500,3.02,191.1,191.08,8.44192202]
[1735749688707,3.02,191.1,191.06,8.44192202]
[1735749689004,2.6221,191.08,191.06,8.44192202]
[1735749689208,3.02,191.1,191.04,8.44192202]
[1735749689405,2.6223,191.07,191.04,8.44192202]
[1735749690399,8.44192202,191.08,191.0,2.623]
[1735749690703,8.44192202,191.08,191.0,11.06492202]
[1735749691298,12.3775439,191.08,191.0,11.06492202]
[1735749692601,2.6224,191.05,191.0,11.06492202]
[1735749692804,3.02,191.04,191.0,11.06492202]
[1735749695413,5.6426,191.04,191.0,11.06492202]
[1735749696907,3.02,191.04,191.02,8.44192202]
[1735749697910,3.02,191.04,191.02,11.06462202]
[1735749698509,3.02,191.04,191.02,8.44192202]
[1735749699410,3.02,191.04,191.02,11.06472202]
[1735749699709,2.6223,191.06,191.02,11.06472202]
[1735749699905,3.02,191.05,191.02,11.06472202]
[1735749700607,3.02,191.05,191.04,8.44192202]
[1735749703619,3.02,191.05,191.02,8.44192202]
[1735749704011,5.6424,191.05,191.0,11.06492202]
[1735749705217,3.02,191.05,191.0,8.44192202]
[1735749705413,3.02,191.05,190.98,11.06522202]
[1735749705617,3.02,191.05,190.98,8.44192202]
[1735749707017,3.02,191.05,191.0,8.44192202]
[1735749707618,2.6226,191.04,191.0,11.06502202]
[1735749707822,3.02,191.05,191.0,8.44192202]
[1735749708218,5.6425,191.05,191.01,2.6229]
[1735749710029,2.6225,191.05,191.01,2.6229]
[1735749710221,3.02,191.04,191.01,2.6229]
[1735749710621,3.02,191.03,191.02,8.44192202]
[1735749712027,3.02,191.03,191.02,11.06472202]
[1735749712329,3.02,191.05,191.02,8.44192202]
[1735749712623,3.02,191.05,191.04,8.44192202]
[1735749713527,3.02,191.05,191.04,11.06452202]
[1735749714327,3.02,191.09,191.08,2.6219]
[1735749714528,3.02,191.09,191.08,11.06382202]
[1735749715223,3.02,191.09,191.08,8.44192202]
[1735749718028,3.02,191.09,191.06,8.44192202]
[1735749718323,2.622,191.08,191.06,8.44192202]
[1735749719427,3.02,191.09,191.06,8.44192202]
[1735749720328,3.02,191.09,191.07,2.6221]
[1735749720520,3.02,191.09,191.08,8.44192202]
[1735749720925,3.02,191.09,191.06,8.44192202]
[1735749721730,3.02,191.09,191.06,11.06412202]
[1735749723625,3.02,191.09,191.06,2.6222]
[1735749723829,3.02,191.09,191.07,8.44192202]
[1735749724928,3.02,191.09,191.07,11.06412202]
[1735749730634,3.02,191.08,191.07,11.06412202]
[1735749731335,3.02,191.08,191.05,11.06422202]
[1735749732033,3.02,191.08,191.06,2.6223]
[1735749733437,3.02,191.08,191.07,11.06412202]
[1735749734138,2.6216,191.12,191.07,11.06412202]
[1735749734341,3.02,191.11,191.07,11.06412202]
[1735749737145,3.02,191.11,191.07,8.44192202]
[1735749737439,3.02,191.11,191.08,2.622]
[1735749738035,3.02,191.11,191.07,8.44192202]
[1735749738240,3.02,191.11,191.05,8.44192202]
[1735749738937,2.6218,191.1,191.05,11.06422202]
[1735749741340,3.02,191.11,191.05,11.06422202]
[1735749741545,8.44192202,191.1,191.02,8.44192202]
[1735749741739,8.44192202,191.08,191.01,8.44192202]
[1735749742242,2.6225,191.05,191.01,8.44192202]
[1735749742444,3.02,191.04,190.97,41.63307141]
[1735749742645,3.02,191.03,190.98,8.44192202]
[1735749743445,5.6428,191.03,190.98,11.06532202]
[1735749744550,5.6428,191.03,190.98,2.6234]
[1735749744750,5.6428,191.03,190.99,8.44192202]
[1735749746043,2.6229,191.02,190.97,42.87056041]
[1735749747554,2.6229,191.02,190.97,45.49406041]
[1735749748639,2.6229,191.02,190.97,37.05213839]
[1735749748840,2.6229,191.02,190.98,8.44192202]
[1735749749041,5.6427,191.03,190.98,11.06532202]
[1735749751749,3.02,191.03,190.98,8.44192202]
[1735749751953,3.02,191.03,191.0,8.44192202]
[1735749752452,3.02,191.03,190.98,8.44192202]
[1735749753445,5.6427,191.03,190.98,11.06532202]
[1735749757255,3.02,191.03,190.98,8.44192202]
[1735749757955,3.02,191.02,190.98,8.44192202]
[1735749758162,3.02,191.01,190.99,2.6231]
[1735749758346,3.02,191.01,190.94,3.0662]
[1735749758347,3.02,191.01,190.97,8.44192202]
[1735749758550,3.02,191.01,190.94,1.5556]
[1735749758758,3.02,191.01,190.97,8.44192202]
[1735749759552,3.02,191.01,190.98,2.6234]
[1735749763765,3.02,191.01,190.99,11.06512202]
[1735749781683,3.02,191.01,190.99,2.6232]
[1735749784590,3.02,191.01,190.96,2.6237]
[1735749784793,3.02,191.01,190.95,8.44192202]
[1735749785089,2.6231,191.0,190.96,2.6237]
[1735749785290,3.02,191.01,190.96,2.6237]
[1735749786086,3.02,191.01,190.95,8.44192202]
[1735749786293,5.643,191.01,190.97,2.6235]
[1735749789591,2.6231,191.0,190.96,2.6236]
[1735749792693,3.02,191.01,190.95,8.44192202]
[1735749792887,2.6234,190.99,190.95,11.06572202]
[1735749794092,3.02,191.01,190.95,11.06572202]
[1735749794293,3.02,191.01,190.95,8.44192202]
[1735749794494,8.44192202,191.0,190.94,2.6239]
[1735749795599,2.6235,190.98,190.94,2.6239]
[1735749797198,3.02,191.01,190.96,2.6237]
[1735749798496,3.02,191.01,190.97,2.6235]
[1735749800496,5.6431,191.01,190.97,2.6235]
[1735749800698,3.02,191.01,190.97,2.6235]
[1735749800900,3.02,191.0,190.97,2.6235]
[1735749804000,1.6163,191.03,190.97,8.44192202]
[1735749804203,3.02,191.02,191.0,2.6231]
[1735749804403,2.6226,191.04,191.0,2.6231]
[1735749804601,3.02,191.03,191.0,2.6231]
[1735749805303,5.6427,191.03,191.0,2.6231]
[1735749806403,12.37846627,191.05,190.99,8.44192202]
[1735749806604,5.6426,191.04,191.0,2.6231]
[1735749806799,8.44192202,191.03,190.98,8.44192202]
[1735749807304,2.623,191.02,190.98,11.06522202]
[1735749807603,8.44192202,191.03,190.96,8.44192202]
[1735749807796,8.44192202,191.01,190.94,8.44192202]
[1735749808505,2.6233,190.99,190.94,8.44192202]
[1735749808699,3.02,190.98,190.94,8.44192202]
[1735749809502,3.02,190.98,190.95,2.6238]
[1735749811102,2.6233,190.99,190.95,2.6238]
[1735749811308,8.84578474,192.96,190.98,8.44192202]
[1735749811309,2.6227,191.04,190.98,8.44192202]
[1735749811604,3.02,191.03,191.0,8.44192202]
[1735749811800,2.6227,191.04,191.0,8.44192202]
[1735749812005,3.02,191.03,191.0,8.44192202]
[1735749812408,5.6427,191.03,190.97,8.44192202]
[1735749813312,5.6427,191.03,190.99,11.06522202]
[1735749817114,5.6427,191.03,190.99,8.44192202]
[1735749817302,2.6227,191.03,190.99,8.44192202]
[1735749817503,3.02,191.04,191.01,8.44192202]
[1735749820414,3.02,191.04,191.0,2.6231]
[1735749821616,2.6227,191.03,190.99,8.44192202]
[1735749822216,2.6227,191.03,190.98,2.6234]
[1735749822519,2.6227,191.03,190.98,11.06532202]
[1735749824516,2.6227,191.03,190.98,8.44192202]
[1735749826619,8.44192202,191.03,190.91,28.81773209]
[1735749826820,8.44192202,191.01,190.91,28.81773209]
[1735749827016,8.44192202,191.01,190.93,8.44192202]
[1735749827919,2.6233,190.99,190.93,11.06592202]
[1735749828120,3.02,190.98,190.93,8.44192202]
[1735749829018,5.6434,190.98,190.93,8.44192202]
[1735749829216,3.02,190.98,190.92,2.6241]
[1735749829417,8.44192202,190.97,190.89,1.6178]
[1735749829619,8.44192202,190.93,190.86,30.94583947]
[1735749829921,3.02,190.92,190.86,37.25965411]
[1735749830112,3.02,190.92,190.86,28.81773209]
[1735749830313,2.6244,190.91,190.86,2.625]
[1735749830521,8.44192202,190.91,190.86,8.44192202]
[1735749830721,8.44192202,190.91,190.84,8.44192202]
[1735749830922,8.44192202,190.89,190.83,28.81773209]
[1735749831216,8.44192202,190.87,190.83,28.81773209]
[1735749831423,3.02,190.86,190.83,28.81773209]
[1735749831824,3.02,190.86,190.81,35.9463604]
[1735749831825,3.02,190.86,190.81,9.99592202]
[1735749832121,3.02,190.86,190.83,8.44192202]
[1735749832323,3.02,190.86,190.85,8.44192202]
[1735749832725,3.02,190.86,190.83,8.44192202]
[1735749834920,3.02,190.86,190.85,8.44192202]
[1735749835523,3.02,190.86,190.83,2.6253]
[1735749835722,3.02,190.86,190.84,8.44192202]
[1735749835924,3.02,190.86,190.84,11.06712202]
[1735749836525,3.02,190.86,190.84,8.44192202]
[1735749837225,3.02,190.86,190.82,11.06742202]
[1735749837525,3.02,190.86,190.82,2.6255]
[1735749837723,3.02,190.86,190.82,11.06742202]
[1735749838427,3.02,190.86,190.82,8.44192202]
[1735749840028,3.02,190.86,190.82,11.06752202]
[1735749842334,3.02,190.86,190.82,8.44192202]
[1735749842528,8.44192202,190.85,190.79,8.44192202]
[1735749842928,2.6255,190.83,190.79,8.44192202]
[1735749843836,8.44192202,190.85,190.79,8.44192202]
[1735749844235,8.44192202,190.85,190.74,3.0134]
[1735749844434,8.44192202,190.83,190.77,8.44192202]
[1735749844637,8.44192202,190.83,190.75,8.44192202]
[1735749846232,8.44192202,190.83,190.74,3.0134]
[1735749846439,2.6257,190.81,190.76,8.44192202]
[1735749846634,3.02,190.8,190.76,8.44192202]
[1735749846939,5.6459,190.8,190.76,8.44192202]
[1735749847335,3.02,190.8,190.74,11.06862202]
[1735749847844,2.6261,190.79,190.74,11.06862202]
[1735749848438,2.6263,190.77,190.74,8.44192202]
[1735749849544,3.02,190.8,190.75,2.6264]
[1735749850745,5.6459,190.8,190.75,2.6264]
[1735749851043,3.02,190.8,190.74,8.44192202]
[1735749851243,2.626,190.79,190.74,11.06862202]
[1735749851744,2.6263,190.77,190.74,8.44192202]
[1735749851944,3.02,190.8,190.74,8.44192202]
[1735749853543,2.6262,190.78,190.74,11.06862202]
[1735749855043,3.02,190.8,190.68,3.116]
[1735749855243,2.6263,190.77,190.73,8.44192202]
[1735749856045,3.02,190.8,190.73,8.44192202]
[1735749856241,3.02,190.8,190.75,8.44192202]
[1735749857441,3.063,190.87,190.75,8.44192202]
[1735749857746,8.44192202,190.84,190.77,8.44192202]
[1735749857948,2.6256,190.82,190.77,11.06822202]
[1735749858142,3.02,190.81,190.77,11.06822202]
[1735749858947,5.6458,190.81,190.77,11.06822202]
[1735749859647,5.6458,190.81,190.77,8.44192202]
[1735749859949,5.6458,190.81,190.76,2.6264]
[1735749860157,3.02,190.81,190.75,8.44192202]
[1735749860449,2.626,190.79,190.74,2.6266]
[1735749860846,8.44192202,190.78,190.69,1.5064]
[1735749861046,8.44192202,190.78,190.71,8.44192202]
[1735749862445,2.6264,190.76,190.72,2.627]
[1735749862653,3.02,190.75,190.72,2.627]
[1735749865848,54.58,190.85,190.73,8.44192202]
[1735749866153,8.44192202,190.81,190.73,8.44192202]
[1735749866555,2.626,190.8,190.75,2.6265]
[1735749866751,3.02,190.79,190.68,3.116]
[1735749866946,11.46192202,190.79,190.72,8.44192202]
[1735749867146,11.46192202,190.79,190.68,3.116]
[1735749867358,11.46192202,190.79,190.71,8.44192202]
[1735749867551,8.44192202,190.77,190.71,8.44192202]
[1735749868552,2.6266,190.75,190.71,11.06902202]
[1735749868748,3.02,190.74,190.71,11.06902202]
[1735749871958,5.6467,190.74,190.71,8.44192202]
[1735749872749,3.02,190.74,190.69,8.44192202]
[1735749874359,3.02,190.74,190.66,34.48545896]
[1735749874564,2.6271,190.71,190.67,11.06952202]
[1735749874859,3.02,190.74,190.67,8.44192202]
[1735749875561,3.02,190.73,190.71,8.44192202]
[1735749876653,3.02,190.73,190.64,28.81773209]
[1735749876859,8.44192202,190.71,190.64,28.81773209]
[1735749877160,8.44192202,190.69,190.64,28.81773209]
[1735749877458,2.6277,190.67,190.64,28.81773209]
[1735749877656,3.02,190.68,190.64,28.81773209]
[1735749877861,3.02,190.68,190.62,8.44192202]
[1735749878359,2.6281,190.64,190.6,8.44192202]
[1735749878555,3.02,190.63,190.6,8.44192202]
[1735749878754,8.44192202,190.67,190.6,8.44192202]
[1735749878755,3.02,190.62,190.6,8.44192202]
[1735749878950,8.44192202,190.71,190.6,8.44192202]
[1735749879154,3.02,190.7,190.64,8.44192202]
[1735749879461,8.44192202,190.71,190.64,8.44192202]
[1735749879662,3.02,190.7,190.64,8.44192202]
[1735749879857,5.6472,190.7,190.65,2.6279]
[1735749880662,2.6275,190.68,190.64,8.44192202]
[1735749880857,3.02,190.67,190.64,8.44192202]
[1735749881360,3.02,190.67,190.63,2.6282]
[1735749881566,3.02,190.67,190.64,8.44192202]
[1735749881858,3.02,190.67,190.58,1.4853]
[1735749882066,3.02,190.67,190.62,8.44192202]
[1735749882460,2.6281,190.65,190.6,2.6285]
[1735749882657,2.6281,190.65,190.61,8.44192202]
[1735749883661,2.6282,190.64,190.61,8.44192202]
[1735749883965,3.02,190.67,190.58,1.4853]
[1735749884168,3.02,190.67,190.61,8.44192202]
[1735749885063,11.46192202,190.67,190.61,8.44192202]
[1735749886262,11.46192202,190.67,190.58,4.1141]
[1735749886566,8.44192202,190.65,190.59,8.44192202]
[1735749888369,2.6283,190.63,190.59,8.44192202]
[1735749888568,3.02,190.62,190.59,8.44192202]
[1735749889065,2.6283,190.63,190.59,8.44192202]
[1735749889260,3.02,190.62,190.59,8.44192202]
[1735749890267,8.44192202,190.67,190.61,8.44192202]
[1735749890572,2.628,190.65,190.6,2.6286]
[1735749890871,3.02,190.66,190.6,2.6286]
[1735749891170,2.6279,190.65,190.6,2.6286]
[1735749891372,3.02,190.64,190.6,2.6286]
[1735749891971,2.6279,190.65,190.6,2.6286]
[1735749892165,3.02,190.63,190.6,2.6286]
[1735749892575,3.02,190.63,190.61,8.44192202]
[1735749893074,3.02,190.63,190.62,2.6283]
[1735749893972,2.6274,190.7,190.65,2.6279]
[1735749894165,3.02,190.69,190.65,11.06982202]
[1735749894873,3.02,190.69,190.65,8.44192202]
[1735749895074,2.6276,190.68,190.63,11.07012202]
[1735749897478,2.6277,190.67,190.63,11.07012202]
[1735749897879,3.02,190.69,190.63,8.44192202]
[1735749898074,8.44192202,190.68,190.61,8.44192202]
[1735749898271,2.6281,190.64,190.6,2.6285]
[1735749898473,3.02,190.63,190.6,8.44192202]
[1735749898675,3.02,190.62,190.6,8.44192202]
[1735749903784,3.02,190.62,190.6,11.07052202]
[1735749904578,3.02,190.62,190.61,2.6285]
[1735749904984,2.6278,190.66,190.6,8.44192202]
[1735749904985,3.02,190.64,190.6,8.44192202]
[1735749905287,3.02,190.64,190.62,8.44192202]
[1735749905478,2.6278,190.66,190.62,8.44192202]
[1735749905684,3.02,190.64,190.62,8.44192202]
[1735749905884,8.44192202,190.7,190.62,8.44192202]
[1735749906180,3.02,190.69,190.56,3.158]
[1735749906385,8.44192202,190.68,190.6,8.44192202]
[1735749907994,2.6282,190.64,190.6,8.44192202]
[1735749908486,2.6279,190.65,190.6,8.44192202]
[1735749908686,3.02,190.67,190.6,8.44192202]
[1735749909083,2.6281,190.64,190.6,11.07052202]
[1735749910290,3.02,190.66,190.6,8.44192202]
[1735749910589,5.6479,190.66,190.61,2.6284]
[1735749910781,3.02,190.66,190.62,8.44192202]
[1735749911190,8.44192202,190.7,190.62,8.44192202]
[1735749911392,2.6275,190.68,190.64,2.628]
[1735749911687,2.6275,190.68,190.64,8.44192202]
[1735749912288,3.02,190.67,190.64,8.44192202]
[1735749912595,3.02,190.67,190.64,11.06982202]
[1735749912980,3.02,190.67,190.62,8.44192202]
[1735749913180,5.6478,190.67,190.62,11.07012202]
[1735749913997,3.02,190.67,190.64,8.44192202]
[1735749914187,8.44192202,190.72,190.64,8.44192202]
[1735749914390,3.02,190.71,190.64,8.44192202]
[1735749915388,3.02,190.71,190.66,8.44192202]
[1735749915690,3.02,190.7,190.66,8.44192202]
[1735749915994,3.02,190.71,190.7,2.6272]
[1735749916191,3.02,190.73,190.62,3.02]
[1735749916394,49.28437254,190.78,190.72,8.44192202]
[1735749916601,8.44192202,190.8,190.72,8.44192202]
[1735749916786,3.02,190.78,190.72,8.44192202]
[1735749917493,5.6463,190.78,190.72,8.44192202]
[1735749917694,3.02,190.78,190.72,8.44192202]
[1735749918397,3.02,190.78,190.72,11.06872202]
[1735749918599,3.02,190.78,190.72,8.44192202]
[1735749918796,3.02,190.78,190.74,8.44192202]
[1735749918994,3.02,190.78,190.64,3.02]
[1735749918995,14.08812202,190.78,190.72,11.06892202]
[1735749920101,11.46192202,190.78,190.72,11.06892202]
[1735749920398,2.6263,190.77,190.72,11.06892202]
[1735749921199,8.44192202,190.76,190.7,8.44192202]
[1735749921890,11.06852202,190.76,190.7,11.06912202]
[1735749924603,2.6266,190.76,190.72,8.44192202]
[1735749925603,2.6263,190.77,190.72,11.06882202]
[1735749926303,2.6263,190.77,190.73,2.6268]
[1735749927902,3.02,190.78,190.72,8.44192202]
[1735749928106,8.44192202,190.8,190.74,11.06862202]
[1735749928405,3.02,190.79,190.76,8.44192202]
[1735749928601,3.02,190.78,190.77,2.6263]
[1735749928798,8.44192202,190.84,190.76,8.44192202]
[1735749929002,2.6256,190.83,190.78,11.06802202]
[1735749929203,3.02,190.82,190.78,11.06802202]
[1735749929404,3.02,190.82,190.78,8.44192202]
[1735749930401,3.02,190.82,190.79,2.626]
[1735749931106,3.02,190.83,190.8,8.44192202]
[1735749932105,3.02,190.84,190.8,8.44192202]
[1735749932301,49.26068033,190.86,190.8,8.44192202]
[1735749932504,3.02,190.85,190.8,8.44192202]
[1735749932904,3.02,190.85,190.82,8.44192202]
[1735749933302,8.52136,190.87,190.84,8.44192202]
[1735749934004,5.50136,190.87,190.86,11.06692202]
[1735749934706,5.50136,190.87,190.86,8.44192202]
[1735749934908,5.50136,190.87,190.84,8.44192202]
[1735749935113,5.50136,190.87,190.82,8.44192202]
[1735749935313,2.6251,190.86,190.82,8.44192202]
[1735749935516,3.02,190.85,190.82,8.44192202]
[1735749936812,5.6452,190.85,190.82,8.44192202]
[1735749938517,3.02,190.85,190.8,8.44192202]
[1735749938821,2.6256,190.82,190.78,8.44192202]
[1735749939521,2.6255,190.83,190.78,11.06802202]
[1735749939716,11.46192202,190.85,190.8,8.44192202]
[1735749940917,3.02,190.85,190.8,8.44192202]
[1735749941518,2.6253,190.84,190.8,8.44192202]
[1735749942319,3.02,190.85,190.82,8.44192202]
[1735749943118,5.50136,190.87,190.82,8.44192202]
[1735749943316,5.50136,190.87,190.84,11.06722202]
[1735749943625,5.50136,190.87,190.84,8.44192202]
[1735749943626,3.02,190.86,190.84,8.44192202]
[1735749944218,5.50136,190.87,190.86,2.625]
[1735749944418,5.50136,190.87,190.86,11.06692202]
[1735749945922,5.50136,190.87,190.86,8.44192202]
[1735749947916,5.50136,190.87,190.86,11.06692202]
[1735749949426,54.6,190.96,190.86,8.44192202]
[1735749949628,2.624,190.94,190.89,11.06652202]
[1735749950221,3.02,190.95,190.91,8.44192202]
[1735749951120,3.02,190.96,190.93,8.44192202]
[1735749952430,3.02,190.96,190.93,11.06592202]
[1735749952928,3.06481,190.97,190.93,11.06592202]
[1735749953130,3.02,190.96,190.93,11.06592202]
[1735749953523,3.02,190.96,190.95,8.44192202]
[1735749954329,3.06481,190.97,190.95,8.44192202]
[1735749954529,6.08481,190.97,190.95,8.44192202]
[1735749956133,3.06481,190.97,190.95,11.06572202]
[1735749956831,3.06481,190.97,190.96,2.6237]
[1735749957031,2.98977001,190.97,190.96,2.6237]
[1735749960337,2.98977001,190.97,190.95,8.44192202]
[1735749961932,2.98977001,190.97,190.95,11.06572202]
[1735749963846,2.98977001,190.97,190.96,2.6237]
[1735749964742,3.0,191.03,190.98,2.6233]
[1735749964936,5.6228,191.03,191.0,8.44192202]
[1735749965131,3.0,191.03,191.0,8.44192202]
[1735749965332,3.0,191.03,190.91,37.43835983]
[1735749965333,3.0,191.03,190.97,8.44192202]
[1735749965541,2.6231,191.0,190.97,8.44192202]
[1735749965940,11.44192202,191.03,190.97,8.44192202]
[1735749966133,2.6236,190.97,190.93,8.44192202]
[1735749966742,2.6236,190.97,190.93,11.06602202]
[1735749967636,2.6237,190.96,190.93,8.44192202]
[1735749968042,3.0,190.98,190.93,8.44192202]
[1735749968243,2.6235,190.97,190.95,8.44192202]
[1735749968633,3.0,190.98,190.95,8.44192202]
[1735749968834,5.6234,190.98,190.95,8.44192202]
[1735749969839,3.0,190.98,190.95,8.44192202]
[1735749970339,2.6238,190.96,190.93,8.44192202]
[1735749977847,3.0,190.96,190.93,8.44192202]
[1735749978850,2.6234,190.98,190.93,8.44192202]
[1735749979148,3.0,190.97,190.93,8.44192202]
[1735749980455,5.6237,190.97,190.93,8.44192202]
[1735749985456,5.6237,190.97,190.93,11.06602202]
[1735749986654,5.6237,190.97,190.94,8.44192202]
[1735749990051,3.0,190.97,190.88,3.0616]
[1735749990251,8.44192202,190.95,190.85,8.39683]
[1735749990451,8.44192202,190.93,190.86,8.44192202]
[1735749990649,3.0,190.92,190.86,8.44192202]
[1735749990854,8.44192202,190.91,190.86,8.44192202]
[1735749991557,2.6246,190.89,190.86,8.44192202]
[1735749993053,2.6244,190.91,190.86,11.06692202]
[1735749993260,3.0,190.9,190.88,8.44192202]
[1735749994160,3.0,190.9,190.88,11.06672202]
[1735749997151,3.0,190.9,190.88,8.44192202]
[1735749997361,2.6242,190.92,190.88,8.44192202]
[1735749997655,3.0,190.91,190.88,8.44192202]
[1735749999259,5.6244,190.91,190.88,8.44192202]
[1735750000564,3.0,190.91,190.9,8.44192202]
[1735750002859,1.5331,190.94,190.9,8.44192202]
[1735750003061,5.6241,190.93,190.9,8.44192202]
[1735750003662,3.0,190.93,190.88,8.44192202]
[1735750003861,2.6243,190.92,190.88,8.44192202]
[1735750005170,11.44192202,190.93,190.86,8.44192202]
[1735750005363,3.0,190.93,190.86,8.44192202]
[1735750005560,8.44192202,190.92,190.86,8.44192202]
[1735750005968,2.6248,190.89,190.86,8.44192202]
[1735750006166,3.0,190.88,190.86,8.44192202]
[1735750007278,3.0,190.88,190.85,8.39683]
[1735750007279,2.6249,190.87,190.85,8.39683]
[1735750007482,3.0,190.88,190.85,8.39683]
[1735750009578,2.6249,190.87,190.85,8.39683]
[1735750010883,3.0,190.88,190.85,8.39683]
[1735750011280,2.625,190.86,190.85,5.93423]
[1735750011485,11.44192202,190.88,190.82,8.44192202]
[1735750011885,2.6254,190.84,190.82,8.44192202]
[1735750012085,3.0,190.83,190.82,8.44192202]
[1735750013083,2.6256,190.82,190.8,8.44192202]
[1735750016089,3.0,190.83,190.8,8.44192202]
[1735750016288,5.6255,190.83,190.8,8.44192202]
[1735750020087,3.0,190.83,190.72,3.1099]
[1735750020391,3.0,190.83,190.76,8.44192202]
[1735750020695,2.626,190.79,190.76,8.44192202]
[1735750020999,3.0,190.78,190.68,1.5043]
[1735750021293,3.0,190.77,190.72,8.44192202]
[1735750022102,2.6266,190.75,190.72,8.44192202]
[1735750022698,2.6268,190.74,190.7,8.44192202]
[1735750023903,2.6268,190.73,190.7,8.44192202]
[1735750024201,3.02,190.72,190.7,8.44192202]
[1735750024902,3.02,190.72,190.7,11.06912202]
[1735750025094,3.02,190.72,190.7,8.44192202]
[1735750025292,8.44192202,190.78,190.66,3.0762]
[1735750025598,3.02,190.77,190.7,8.44192202]
[1735750026000,2.6266,190.75,190.7,8.44192202]